[Event "Titled Tuesday Blitz May 2 Early 2023"]
[White "Preotu, Razvan"]
[Black "Kornyukov, Alexey"]
[WhiteFideId "2613280"]
[BlackFideId "4150457"]
[WhiteElo "2407"]
[BlackElo "2352"]
[Result "1-0"]
[Round "03"]
[TimeControl "180+2"]
[Date "2023.05.02"]
[WhiteClock "0:00:09"]
[BlackClock "0:00:14"]

1. e4 {[%clk 0:03:00]}  c5 {[%clk 0:02:59]} 2. Nf3 {[%clk 0:03:00]}  Nc6 {[%clk 0:02:56]} 3. Bb5 {[%clk 0:02:59]}  e6 {[%clk 0:02:52]} 4. O-O {[%clk 0:02:58]}  Nge7 {[%clk 0:02:50]} 5. Re1 {[%clk 0:02:58]}  Ng6 {[%clk 0:02:47]} 6. c3 {[%clk 0:02:51]}  Be7 {[%clk 0:02:44]} 7. d4 {[%clk 0:02:51]}  cxd4 {[%clk 0:02:40]} 8. cxd4 {[%clk 0:02:52]}  d5 {[%clk 0:02:37]} 9. e5 {[%clk 0:02:18]}  O-O {[%clk 0:02:33]} 10. Nc3 {[%clk 0:02:17]}  Qb6 {[%clk 0:02:31]} 11. Bxc6 {[%clk 0:01:18]}  bxc6 {[%clk 0:02:29]} 12. Na4 {[%clk 0:01:17]}  Qc7 {[%clk 0:02:22]} 13. Bd2 {[%clk 0:00:53]}  Ba6 {[%clk 0:02:20]} 14. Rc1 {[%clk 0:00:53]}  Rac8 {[%clk 0:02:06]} 15. Nc5 {[%clk 0:00:51]}  Bxc5 {[%clk 0:02:05]} 16. Rxc5 {[%clk 0:00:52]}  Rb8 {[%clk 0:01:56]} 17. Qc2 {[%clk 0:00:49]}  Rfc8 {[%clk 0:01:54]} 18. h4 {[%clk 0:00:45]}  Rb5 {[%clk 0:01:40]} 19. h5 {[%clk 0:00:44]}  Ne7 {[%clk 0:01:38]} 20. h6 {[%clk 0:00:44]}  g6 {[%clk 0:01:36]} 21. Rc1 {[%clk 0:00:28]}  Qb7 {[%clk 0:01:33]} 22. b3 {[%clk 0:00:25]}  Rxc5 {[%clk 0:01:22]} 23. Qxc5 {[%clk 0:00:26]}  Nf5 {[%clk 0:01:22]} 24. g4 {[%clk 0:00:25]}  Be2 {[%clk 0:01:16]} 25. Rc3 {[%clk 0:00:12]}  Bxf3 {[%clk 0:01:10]} 26. Rxf3 {[%clk 0:00:13]}  Ne7 {[%clk 0:01:06]} 27. Bg5 {[%clk 0:00:13]}  Re8 {[%clk 0:01:02]} 28. Rc3 {[%clk 0:00:10]}  a6 {[%clk 0:00:41]} 29. Bxe7 {[%clk 0:00:10]}  Rxe7 {[%clk 0:00:36]} 30. Qxc6 {[%clk 0:00:11]}  Qxc6 {[%clk 0:00:30]} 31. Rxc6 {[%clk 0:00:11]}  Re8 {[%clk 0:00:30]} 32. Rxa6 {[%clk 0:00:10]}  Rc8 {[%clk 0:00:31]} 33. g5 {[%clk 0:00:10]}  Kf8 {[%clk 0:00:30]} 34. a4 {[%clk 0:00:10]}  Rc1+ {[%clk 0:00:29]} 35. Kg2 {[%clk 0:00:10]}  Rd1 {[%clk 0:00:29]} 36. Ra8+ {[%clk 0:00:04]}  Ke7 {[%clk 0:00:29]} 37. Rh8 {[%clk 0:00:04]}  Rxd4 {[%clk 0:00:26]} 38. Rxh7 {[%clk 0:00:05]}  Rg4+ {[%clk 0:00:26]} 39. Kf3 {[%clk 0:00:05]}  Rxg5 {[%clk 0:00:26]} 40. Rh8 {[%clk 0:00:05]}  Rxe5 {[%clk 0:00:26]} 41. h7 {[%clk 0:00:05]}  Rh5 {[%clk 0:00:25]} 42. a5 {[%clk 0:00:06]}  Kd6 {[%clk 0:00:20]} 43. a6 {[%clk 0:00:06]}  Rf5+ {[%clk 0:00:17]} 44. Ke2 {[%clk 0:00:06]}  Re5+ {[%clk 0:00:16]} 45. Kd2 {[%clk 0:00:06]}  Rh5 {[%clk 0:00:16]} 46. a7 {[%clk 0:00:06]}  Rh2 {[%clk 0:00:15]} 47. a8=Q {[%clk 0:00:07]}  Rxf2+ {[%clk 0:00:15]} 48. Ke1 {[%clk 0:00:07]}  Rh2 {[%clk 0:00:15]} 49. Rd8+ {[%clk 0:00:08]}  Ke5 {[%clk 0:00:15]} 50. Qb8+ {[%clk 0:00:08]}  Ke4 {[%clk 0:00:14]} 51. Qxh2 {[%clk 0:00:09]}  Kd3 {[%clk 0:00:15]} 52. h8=Q {[%clk 0:00:09]}  Ke3 {[%clk 0:00:14]} 53. Q8e5+ {[%clk 0:00:09]} 1-0


[Site "https://www.chess.com"]

[Event "Titled Tuesday Blitz May 2 Early 2023"]
[White "Dimitrov, Atanas"]
[Black "Biriukov, Ilja"]
[WhiteFideId "2901315"]
[BlackFideId "4113373"]
[WhiteElo "2269"]
[BlackElo "2426"]
[Result "1-0"]
[Round "03"]
[TimeControl "180+2"]
[Date "2023.05.02"]
[WhiteClock "0:01:04"]
[BlackClock "0:00:03"]

1. e4 {[%clk 0:03:00]}  c5 {[%clk 0:02:55]} 2. Nf3 {[%clk 0:03:00]}  d6 {[%clk 0:02:54]} 3. d4 {[%clk 0:03:00]}  cxd4 {[%clk 0:02:55]} 4. Nxd4 {[%clk 0:03:01]}  Nf6 {[%clk 0:02:55]} 5. Nc3 {[%clk 0:03:01]}  a6 {[%clk 0:02:56]} 6. g3 {[%clk 0:03:01]}  e5 {[%clk 0:02:54]} 7. Nde2 {[%clk 0:03:01]}  Be6 {[%clk 0:02:53]} 8. Bg2 {[%clk 0:03:01]}  Nbd7 {[%clk 0:02:50]} 9. a4 {[%clk 0:03:01]}  Be7 {[%clk 0:02:49]} 10. O-O {[%clk 0:03:01]}  O-O {[%clk 0:02:48]} 11. h3 {[%clk 0:02:58]}  Qc7 {[%clk 0:02:44]} 12. Be3 {[%clk 0:02:59]}  Nb6 {[%clk 0:02:27]} 13. b3 {[%clk 0:02:57]}  Rfd8 {[%clk 0:02:17]} 14. Ra2 {[%clk 0:02:51]}  Rac8 {[%clk 0:01:57]} 15. a5 {[%clk 0:02:44]}  Nbd7 {[%clk 0:01:55]} 16. Nd5 {[%clk 0:02:41]}  Bxd5 {[%clk 0:01:53]} 17. exd5 {[%clk 0:02:42]}  g6 {[%clk 0:01:39]} 18. c4 {[%clk 0:02:41]}  Rf8 {[%clk 0:01:34]} 19. f4 {[%clk 0:02:24]}  exf4 {[%clk 0:01:33]} 20. Nxf4 {[%clk 0:02:25]}  Ne5 {[%clk 0:01:27]} 21. Nd3 {[%clk 0:02:24]}  Nxd3 {[%clk 0:01:18]} 22. Qxd3 {[%clk 0:02:25]}  Nd7 {[%clk 0:01:18]} 23. Kh2 {[%clk 0:02:20]}  f5 {[%clk 0:01:14]} 24. Bd4 {[%clk 0:02:10]}  Bf6 {[%clk 0:01:03]} 25. Bxf6 {[%clk 0:02:07]}  Nxf6 {[%clk 0:01:04]} 26. Re1 {[%clk 0:02:06]}  Rce8 {[%clk 0:01:00]} 27. Re6 {[%clk 0:02:06]}  Nd7 {[%clk 0:00:57]} 28. b4 {[%clk 0:01:46]}  Ne5 {[%clk 0:00:55]} 29. Qd4 {[%clk 0:01:31]}  Qxc4 {[%clk 0:00:48]} 30. Qxc4 {[%clk 0:01:29]}  Nxc4 {[%clk 0:00:49]} 31. Rc2 {[%clk 0:01:30]}  Rc8 {[%clk 0:00:45]} 32. Re7 {[%clk 0:01:25]}  Rf7 {[%clk 0:00:41]} 33. Re6 {[%clk 0:01:17]}  Rfc7 {[%clk 0:00:33]} 34. Bf1 {[%clk 0:01:12]}  Na3 {[%clk 0:00:15]} 35. Rxc7 {[%clk 0:01:10]}  Rxc7 {[%clk 0:00:15]} 36. Rxd6 {[%clk 0:01:11]}  Nc2 {[%clk 0:00:15]} 37. Rd8+ {[%clk 0:01:07]}  Kg7 {[%clk 0:00:13]} 38. d6 {[%clk 0:01:07]}  Rc3 {[%clk 0:00:06]} 39. d7 {[%clk 0:01:07]}  Kf7 {[%clk 0:00:03]} 40. Rc8 {[%clk 0:01:04]} 1-0


[Site "https://www.chess.com"]

[Event "Titled Tuesday Blitz May 2 Early 2023"]
[White "Kraus, Tomas"]
[Black "Orlov, Georgi"]
[WhiteFideId "331708"]
[BlackFideId "2011271"]
[WhiteElo "2389"]
[BlackElo "2453"]
[Result "0-1"]
[Round "03"]
[TimeControl "180+2"]
[Date "2023.05.02"]
[WhiteClock "0:00:03"]
[BlackClock "0:00:23"]

1. e4 {[%clk 0:03:00]}  d6 {[%clk 0:02:49]} 2. d4 {[%clk 0:02:59]}  Nf6 {[%clk 0:02:49]} 3. Nc3 {[%clk 0:02:59]}  c6 {[%clk 0:02:49]} 4. a4 {[%clk 0:02:59]}  g6 {[%clk 0:02:46]} 5. g3 {[%clk 0:02:59]}  Bg7 {[%clk 0:02:46]} 6. Bg2 {[%clk 0:02:59]}  O-O {[%clk 0:02:46]} 7. Nge2 {[%clk 0:02:59]}  e5 {[%clk 0:02:46]} 8. h3 {[%clk 0:03:00]}  Na6 {[%clk 0:02:45]} 9. O-O {[%clk 0:02:59]}  Qc7 {[%clk 0:02:41]} 10. Be3 {[%clk 0:02:58]}  Re8 {[%clk 0:02:37]} 11. Re1 {[%clk 0:02:52]}  exd4 {[%clk 0:02:31]} 12. Bxd4 {[%clk 0:02:31]}  Nc5 {[%clk 0:02:13]} 13. e5 {[%clk 0:02:23]}  Rxe5 {[%clk 0:02:11]} 14. Bxe5 {[%clk 0:02:21]}  dxe5 {[%clk 0:02:10]} 15. Nc1 {[%clk 0:02:01]}  Bf5 {[%clk 0:02:00]} 16. Qe2 {[%clk 0:02:01]}  Re8 {[%clk 0:01:52]} 17. Nd3 {[%clk 0:01:58]}  Bxd3 {[%clk 0:01:50]} 18. cxd3 {[%clk 0:01:59]}  Nb3 {[%clk 0:01:49]} 19. Rad1 {[%clk 0:01:50]}  Nd4 {[%clk 0:01:42]} 20. Qd2 {[%clk 0:01:46]}  Rd8 {[%clk 0:01:31]} 21. Qc1 {[%clk 0:01:40]}  Qa5 {[%clk 0:01:15]} 22. Qg5 {[%clk 0:01:24]}  Re8 {[%clk 0:01:09]} 23. Kh2 {[%clk 0:01:08]}  h6 {[%clk 0:01:08]} 24. Qc1 {[%clk 0:01:07]}  Nd7 {[%clk 0:01:01]} 25. Qa1 {[%clk 0:01:01]}  Nc2 {[%clk 0:01:00]} 26. Qa2 {[%clk 0:00:57]}  Nxe1 {[%clk 0:00:59]} 27. Rxe1 {[%clk 0:00:58]}  Re6 {[%clk 0:00:54]} 28. Qb3 {[%clk 0:00:57]}  Qc7 {[%clk 0:00:46]} 29. Ne4 {[%clk 0:00:52]}  a5 {[%clk 0:00:41]} 30. Rc1 {[%clk 0:00:50]}  Kh7 {[%clk 0:00:40]} 31. Qc4 {[%clk 0:00:46]}  Qb6 {[%clk 0:00:38]} 32. Rc2 {[%clk 0:00:33]}  Bf8 {[%clk 0:00:36]} 33. h4 {[%clk 0:00:30]}  Qb4 {[%clk 0:00:35]} 34. Bh3 {[%clk 0:00:30]}  Qxc4 {[%clk 0:00:34]} 35. Rxc4 {[%clk 0:00:29]}  f5 {[%clk 0:00:33]} 36. h5 {[%clk 0:00:25]}  Nb6 {[%clk 0:00:31]} 37. Rc1 {[%clk 0:00:08]}  Bb4 {[%clk 0:00:26]} 38. b3 {[%clk 0:00:08]}  Re7 {[%clk 0:00:23]} 39. hxg6+ {[%clk 0:00:08]}  Kxg6 {[%clk 0:00:23]} 40. Nc5 {[%clk 0:00:07]}  Nd5 {[%clk 0:00:23]} 41. Rd1 {[%clk 0:00:03]}  Bxc5 {[%clk 0:00:23]} 0-1


[Site "https://www.chess.com"]

[Event "Titled Tuesday Blitz May 2 Early 2023"]
[White "Garrido, Denis"]
[Black "Iskusnyh, Sergei"]
[WhiteFideId "601217"]
[BlackFideId "4120027"]
[WhiteElo "2205"]
[BlackElo "2492"]
[Result "0-1"]
[Round "03"]
[TimeControl "180+2"]
[Date "2023.05.02"]
[WhiteClock "0:00:03"]
[BlackClock "0:00:03"]

1. e4 {[%clk 0:03:00]}  e6 {[%clk 0:02:58]} 2. d4 {[%clk 0:03:00]}  d5 {[%clk 0:02:59]} 3. exd5 {[%clk 0:02:59]}  exd5 {[%clk 0:03:00]} 4. Nf3 {[%clk 0:02:59]}  Nf6 {[%clk 0:02:59]} 5. Bd3 {[%clk 0:02:59]}  c5 {[%clk 0:02:56]} 6. Bb5+ {[%clk 0:02:55]}  Nc6 {[%clk 0:02:54]} 7. O-O {[%clk 0:02:55]}  Be7 {[%clk 0:02:51]} 8. dxc5 {[%clk 0:02:51]}  Bxc5 {[%clk 0:02:51]} 9. Nc3 {[%clk 0:02:45]}  O-O {[%clk 0:02:48]} 10. Bg5 {[%clk 0:02:44]}  Be6 {[%clk 0:02:46]} 11. Na4 {[%clk 0:02:18]}  Be7 {[%clk 0:02:42]} 12. Bxc6 {[%clk 0:02:15]}  bxc6 {[%clk 0:02:41]} 13. Be3 {[%clk 0:02:13]}  Ne4 {[%clk 0:02:11]} 14. Nd2 {[%clk 0:01:57]}  Qa5 {[%clk 0:01:38]} 15. Nxe4 {[%clk 0:01:53]}  dxe4 {[%clk 0:01:38]} 16. b3 {[%clk 0:01:45]}  Rfd8 {[%clk 0:01:32]} 17. Qe2 {[%clk 0:01:43]}  Qe5 {[%clk 0:01:23]} 18. Rad1 {[%clk 0:01:38]}  Bd6 {[%clk 0:01:21]} 19. g3 {[%clk 0:01:36]}  Be7 {[%clk 0:01:16]} 20. Bf4 {[%clk 0:01:24]}  Qf5 {[%clk 0:01:10]} 21. Qe3 {[%clk 0:01:18]}  h6 {[%clk 0:01:06]} 22. Rxd8+ {[%clk 0:01:09]}  Bxd8 {[%clk 0:01:01]} 23. Nc5 {[%clk 0:01:02]}  Bb6 {[%clk 0:00:59]} 24. b4 {[%clk 0:00:51]}  Bxc5 {[%clk 0:00:58]} 25. Qxc5 {[%clk 0:00:47]}  Qxc5 {[%clk 0:00:57]} 26. bxc5 {[%clk 0:00:48]}  Bxa2 {[%clk 0:00:57]} 27. Ra1 {[%clk 0:00:48]}  Bc4 {[%clk 0:00:56]} 28. Bc7 {[%clk 0:00:41]}  f5 {[%clk 0:00:52]} 29. Kg2 {[%clk 0:00:35]}  a6 {[%clk 0:00:51]} 30. f3 {[%clk 0:00:34]}  Bd5 {[%clk 0:00:48]} 31. fxe4 {[%clk 0:00:32]}  Bxe4+ {[%clk 0:00:47]} 32. Kf2 {[%clk 0:00:32]}  Bxc2 {[%clk 0:00:47]} 33. Ke3 {[%clk 0:00:32]}  Kf7 {[%clk 0:00:45]} 34. Kd4 {[%clk 0:00:30]}  Ke6 {[%clk 0:00:43]} 35. Re1+ {[%clk 0:00:29]}  Be4 {[%clk 0:00:43]} 36. g4 {[%clk 0:00:29]}  g6 {[%clk 0:00:40]} 37. h4 {[%clk 0:00:28]}  Ra7 {[%clk 0:00:39]} 38. Bd6 {[%clk 0:00:26]}  Rb7 {[%clk 0:00:38]} 39. h5 {[%clk 0:00:23]}  Rb4+ {[%clk 0:00:26]} 40. Kc3 {[%clk 0:00:23]}  a5 {[%clk 0:00:25]} 41. hxg6 {[%clk 0:00:22]}  fxg4 {[%clk 0:00:25]} 42. Be5 {[%clk 0:00:11]}  Kxe5 {[%clk 0:00:22]} 43. g7 {[%clk 0:00:08]}  Rb3+ {[%clk 0:00:20]} 44. Kxb3 {[%clk 0:00:08]}  Kd4 {[%clk 0:00:12]} 45. g8=Q {[%clk 0:00:07]}  Bd5+ {[%clk 0:00:12]} 46. Qxd5+ {[%clk 0:00:08]}  Kxd5 {[%clk 0:00:12]} 47. Rc1 {[%clk 0:00:07]}  h5 {[%clk 0:00:11]} 48. Rh1 {[%clk 0:00:08]}  Kxc5 {[%clk 0:00:11]} 49. Rxh5+ {[%clk 0:00:07]}  Kd4 {[%clk 0:00:11]} 50. Rxa5 {[%clk 0:00:07]}  Ke3 {[%clk 0:00:10]} 51. Kc3 {[%clk 0:00:04]}  g3 {[%clk 0:00:10]} 52. Re5+ {[%clk 0:00:04]}  Kf4 {[%clk 0:00:09]} 53. Rc5 {[%clk 0:00:03]}  g2 {[%clk 0:00:09]} 54. Rxc6 {[%clk 0:00:04]}  g1=Q {[%clk 0:00:07]} 55. Rc4+ {[%clk 0:00:05]}  Ke3 {[%clk 0:00:07]} 56. Kb4 {[%clk 0:00:04]}  Qb1+ {[%clk 0:00:07]} 57. Kc5 {[%clk 0:00:05]}  Qf5+ {[%clk 0:00:07]} 58. Kb4 {[%clk 0:00:05]}  Qf8+ {[%clk 0:00:07]} 59. Kb5 {[%clk 0:00:05]}  Kd3 {[%clk 0:00:07]} 60. Rc5 {[%clk 0:00:05]}  Qb8+ {[%clk 0:00:07]} 61. Kc6 {[%clk 0:00:05]}  Kd4 {[%clk 0:00:07]} 62. Rd5+ {[%clk 0:00:05]}  Ke4 {[%clk 0:00:07]} 63. Rc5 {[%clk 0:00:05]}  Qa7 {[%clk 0:00:07]} 64. Kd6 {[%clk 0:00:05]}  Qb6+ {[%clk 0:00:06]} 65. Rc6 {[%clk 0:00:05]}  Qd8+ {[%clk 0:00:06]} 66. Kc5 {[%clk 0:00:06]}  Qd5+ {[%clk 0:00:06]} 67. Kb6 {[%clk 0:00:06]}  Qb3+ {[%clk 0:00:06]} 68. Kc7 {[%clk 0:00:06]}  Kd5 {[%clk 0:00:06]} 69. Rd6+ {[%clk 0:00:06]}  Ke5 {[%clk 0:00:06]} 70. Rc6 {[%clk 0:00:06]}  Qb4 {[%clk 0:00:05]} 71. Kd7 {[%clk 0:00:05]}  Qa4 {[%clk 0:00:05]} 72. Kc7 {[%clk 0:00:05]}  Qa7+ {[%clk 0:00:05]} 73. Kd8 {[%clk 0:00:05]}  Kd5 {[%clk 0:00:05]} 74. Rc7 {[%clk 0:00:03]}  Qb6 {[%clk 0:00:04]} 75. Kd7 {[%clk 0:00:03]}  Qe6+ {[%clk 0:00:04]} 76. Kd8 {[%clk 0:00:03]}  Qg8+ {[%clk 0:00:04]} 77. Kd7 {[%clk 0:00:03]}  Qg4+ {[%clk 0:00:04]} 78. Kd8 {[%clk 0:00:03]}  Kd6 {[%clk 0:00:03]} 0-1


[Site "https://www.chess.com"]

[Event "Titled Tuesday Blitz May 2 Early 2023"]
[White "Bashirli, Saadat"]
[Black "Chernomordik, Pavel"]
[WhiteFideId "13429990"]
[BlackFideId "2804530"]
[WhiteElo "1408"]
[BlackElo "2193"]
[Result "0-1"]
[Round "03"]
[TimeControl "180+2"]
[Date "2023.05.02"]
[WhiteClock "0:00:03"]
[BlackClock "0:00:24"]

1. e4 {[%clk 0:03:00]}  g6 {[%clk 0:02:59]} 2. d4 {[%clk 0:02:58]}  Bg7 {[%clk 0:02:59]} 3. Nc3 {[%clk 0:02:56]}  d6 {[%clk 0:02:59]} 4. Be2 {[%clk 0:02:52]}  a6 {[%clk 0:02:58]} 5. h4 {[%clk 0:02:52]}  h6 {[%clk 0:02:57]} 6. Nf3 {[%clk 0:02:48]}  b5 {[%clk 0:02:54]} 7. a3 {[%clk 0:02:47]}  Bb7 {[%clk 0:02:52]} 8. O-O {[%clk 0:02:44]}  Nd7 {[%clk 0:02:52]} 9. Be3 {[%clk 0:02:43]}  Ngf6 {[%clk 0:02:43]} 10. Bd3 {[%clk 0:02:33]}  Ng4 {[%clk 0:02:39]} 11. Bf4 {[%clk 0:02:31]}  c5 {[%clk 0:02:37]} 12. dxc5 {[%clk 0:02:27]}  Nxc5 {[%clk 0:02:35]} 13. Re1 {[%clk 0:02:21]}  Qb6 {[%clk 0:02:22]} 14. Qd2 {[%clk 0:02:13]}  Ne6 {[%clk 0:02:15]} 15. Bg3 {[%clk 0:02:09]}  O-O {[%clk 0:02:09]} 16. Nd5 {[%clk 0:01:55]}  Qd8 {[%clk 0:02:06]} 17. Rab1 {[%clk 0:01:45]}  Ne5 {[%clk 0:01:55]} 18. Nxe5 {[%clk 0:01:41]}  dxe5 {[%clk 0:01:55]} 19. Ne3 {[%clk 0:01:33]}  Nf4 {[%clk 0:01:51]} 20. Bxf4 {[%clk 0:01:29]}  exf4 {[%clk 0:01:50]} 21. Nd1 {[%clk 0:01:27]}  e5 {[%clk 0:01:45]} 22. Nc3 {[%clk 0:01:26]}  Qxh4 {[%clk 0:01:43]} 23. Rbd1 {[%clk 0:01:20]}  Rad8 {[%clk 0:01:42]} 24. Qe2 {[%clk 0:01:19]}  Bc8 {[%clk 0:01:34]} 25. Nd5 {[%clk 0:01:14]}  Bg4 {[%clk 0:01:20]} 26. f3 {[%clk 0:01:14]}  Be6 {[%clk 0:01:20]} 27. Nc3 {[%clk 0:01:10]}  Rfe8 {[%clk 0:01:17]} 28. Qf2 {[%clk 0:01:09]}  Qe7 {[%clk 0:01:14]} 29. Bf1 {[%clk 0:01:05]}  Rd4 {[%clk 0:01:10]} 30. Rxd4 {[%clk 0:01:02]}  exd4 {[%clk 0:01:07]} 31. Ne2 {[%clk 0:01:02]}  Qd6 {[%clk 0:01:05]} 32. Rd1 {[%clk 0:01:01]}  Rd8 {[%clk 0:01:03]} 33. c3 {[%clk 0:00:57]}  d3 {[%clk 0:00:51]} 34. Nc1 {[%clk 0:00:54]}  d2 {[%clk 0:00:49]} 35. Nd3 {[%clk 0:00:52]}  Bc4 {[%clk 0:00:48]} 36. Rxd2 {[%clk 0:00:51]}  a5 {[%clk 0:00:42]} 37. Qe1 {[%clk 0:00:29]}  b4 {[%clk 0:00:38]} 38. axb4 {[%clk 0:00:28]}  axb4 {[%clk 0:00:37]} 39. Qc1 {[%clk 0:00:17]}  bxc3 {[%clk 0:00:35]} 40. bxc3 {[%clk 0:00:18]}  Qb6+ {[%clk 0:00:34]} 41. Kh2 {[%clk 0:00:17]}  Qe3 {[%clk 0:00:35]} 42. Qd1 {[%clk 0:00:09]}  Bxc3 {[%clk 0:00:32]} 43. Rc2 {[%clk 0:00:06]}  Bd4 {[%clk 0:00:32]} 44. Rxc4 {[%clk 0:00:05]}  Qg1+ {[%clk 0:00:31]} 45. Kh3 {[%clk 0:00:06]}  Qh1+ {[%clk 0:00:26]} 46. Kg4 {[%clk 0:00:06]}  Be3 {[%clk 0:00:26]} 47. Rc5 {[%clk 0:00:03]}  Bxc5 {[%clk 0:00:24]} 0-1


[Site "https://www.chess.com"]

[Event "Titled Tuesday Blitz May 2 Early 2023"]
[White "Manukyan, Artyom"]
[Black "Jiganchine, Roman"]
[WhiteFideId "13305786"]
[BlackFideId "2603667"]
[WhiteElo "2078"]
[BlackElo "2205"]
[Result "1-0"]
[Round "03"]
[TimeControl "180+2"]
[Date "2023.05.02"]
[WhiteClock "0:00:28"]
[BlackClock "0:00:01"]

1. Nf3 {[%clk 0:02:58]}  d5 {[%clk 0:02:59]} 2. g3 {[%clk 0:02:59]}  Nf6 {[%clk 0:02:58]} 3. Bg2 {[%clk 0:02:59]}  Bf5 {[%clk 0:02:58]} 4. O-O {[%clk 0:03:00]}  c6 {[%clk 0:02:58]} 5. c4 {[%clk 0:02:57]}  h6 {[%clk 0:02:56]} 6. b3 {[%clk 0:02:54]}  e6 {[%clk 0:02:55]} 7. Bb2 {[%clk 0:02:18]}  a5 {[%clk 0:02:54]} 8. Nc3 {[%clk 0:02:10]}  Nbd7 {[%clk 0:02:54]} 9. d4 {[%clk 0:02:08]}  Be7 {[%clk 0:02:53]} 10. Ne5 {[%clk 0:02:07]}  Nxe5 {[%clk 0:02:50]} 11. dxe5 {[%clk 0:02:08]}  Nd7 {[%clk 0:02:48]} 12. cxd5 {[%clk 0:02:06]}  exd5 {[%clk 0:02:38]} 13. e4 {[%clk 0:02:05]}  dxe4 {[%clk 0:02:18]} 14. Nxe4 {[%clk 0:02:06]}  Bxe4 {[%clk 0:01:54]} 15. Bxe4 {[%clk 0:02:04]}  Nc5 {[%clk 0:01:51]} 16. Bg2 {[%clk 0:02:00]}  Qxd1 {[%clk 0:01:45]} 17. Rfxd1 {[%clk 0:02:01]}  Ne6 {[%clk 0:01:36]} 18. Rd2 {[%clk 0:01:45]}  Bb4 {[%clk 0:01:28]} 19. Rd3 {[%clk 0:01:42]}  Nc5 {[%clk 0:01:21]} 20. Rdd1 {[%clk 0:01:38]}  Ne6 {[%clk 0:01:21]} 21. Rac1 {[%clk 0:01:33]}  a4 {[%clk 0:01:11]} 22. Rc4 {[%clk 0:01:29]}  Be7 {[%clk 0:01:02]} 23. bxa4 {[%clk 0:01:26]}  Rd8 {[%clk 0:00:43]} 24. Rxd8+ {[%clk 0:01:16]}  Kxd8 {[%clk 0:00:42]} 25. Bc3 {[%clk 0:01:16]}  Kc7 {[%clk 0:00:37]} 26. a5 {[%clk 0:01:15]}  Rd8 {[%clk 0:00:23]} 27. h4 {[%clk 0:01:13]}  Rd1+ {[%clk 0:00:23]} 28. Kh2 {[%clk 0:01:12]}  g5 {[%clk 0:00:21]} 29. hxg5 {[%clk 0:01:07]}  hxg5 {[%clk 0:00:20]} 30. a6 {[%clk 0:01:08]}  Bc5 {[%clk 0:00:07]} 31. Ba5+ {[%clk 0:00:37]}  Kb8 {[%clk 0:00:06]} 32. axb7 {[%clk 0:00:33]}  Kxb7 {[%clk 0:00:06]} 33. Bb4 {[%clk 0:00:34]}  Bxb4 {[%clk 0:00:05]} 34. Rxb4+ {[%clk 0:00:35]}  Kc7 {[%clk 0:00:05]} 35. Ra4 {[%clk 0:00:35]}  Kb6 {[%clk 0:00:05]} 36. Rb4+ {[%clk 0:00:32]}  Kc7 {[%clk 0:00:05]} 37. Rc4 {[%clk 0:00:32]}  c5 {[%clk 0:00:04]} 38. Ra4 {[%clk 0:00:33]}  Kb6 {[%clk 0:00:05]} 39. Ra8 {[%clk 0:00:33]}  Rd8 {[%clk 0:00:04]} 40. Rxd8 {[%clk 0:00:31]}  Nxd8 {[%clk 0:00:05]} 41. Bd5 {[%clk 0:00:31]}  Kb5 {[%clk 0:00:04]} 42. Kh3 {[%clk 0:00:29]}  c4 {[%clk 0:00:04]} 43. Kg4 {[%clk 0:00:30]}  c3 {[%clk 0:00:04]} 44. Bb3 {[%clk 0:00:30]}  Kc5 {[%clk 0:00:04]} 45. Kxg5 {[%clk 0:00:30]}  Kd4 {[%clk 0:00:04]} 46. Kf6 {[%clk 0:00:30]}  Nc6 {[%clk 0:00:01]} 47. f4 {[%clk 0:00:28]} 1-0


[Site "https://www.chess.com"]

[Event "Titled Tuesday Blitz May 2 Early 2023"]
[White "Goldin, Roman"]
[Black "Horak, Martin"]
[WhiteFideId "2803860"]
[BlackFideId "367095"]
[WhiteElo "2312"]
[BlackElo "2091"]
[Result "1-0"]
[Round "03"]
[TimeControl "180+2"]
[Date "2023.05.02"]
[WhiteClock "0:00:10"]
[BlackClock "0:00:05"]

1. e4 {[%clk 0:02:46]}  c5 {[%clk 0:02:59]} 2. Nf3 {[%clk 0:02:46]}  Nc6 {[%clk 0:02:59]} 3. c3 {[%clk 0:02:45]}  d5 {[%clk 0:02:55]} 4. exd5 {[%clk 0:02:45]}  Qxd5 {[%clk 0:02:56]} 5. d4 {[%clk 0:02:46]}  e6 {[%clk 0:02:53]} 6. Be2 {[%clk 0:02:46]}  Nf6 {[%clk 0:02:52]} 7. O-O {[%clk 0:02:46]}  Be7 {[%clk 0:02:44]} 8. Na3 {[%clk 0:02:44]}  O-O {[%clk 0:02:43]} 9. Nc2 {[%clk 0:02:43]}  a6 {[%clk 0:02:34]} 10. Bg5 {[%clk 0:02:37]}  h6 {[%clk 0:02:30]} 11. Ne3 {[%clk 0:02:34]}  Qd8 {[%clk 0:01:42]} 12. Bxf6 {[%clk 0:02:30]}  Bxf6 {[%clk 0:01:43]} 13. dxc5 {[%clk 0:02:29]}  Qa5 {[%clk 0:01:44]} 14. b4 {[%clk 0:02:28]}  Qa3 {[%clk 0:01:34]} 15. Nd4 {[%clk 0:01:39]}  Nxd4 {[%clk 0:01:25]} 16. cxd4 {[%clk 0:01:37]}  Qxb4 {[%clk 0:01:25]} 17. Nc4 {[%clk 0:01:27]}  Qc3 {[%clk 0:01:04]} 18. Nb6 {[%clk 0:01:04]}  Rb8 {[%clk 0:00:58]} 19. Bf3 {[%clk 0:01:00]}  Qxd4 {[%clk 0:00:54]} 20. Qc2 {[%clk 0:00:47]}  e5 {[%clk 0:00:38]} 21. Rfd1 {[%clk 0:00:34]}  Qh4 {[%clk 0:00:35]} 22. g3 {[%clk 0:00:33]}  Qg5 {[%clk 0:00:31]} 23. h4 {[%clk 0:00:31]}  Qg6 {[%clk 0:00:18]} 24. Qxg6 {[%clk 0:00:31]}  fxg6 {[%clk 0:00:19]} 25. Be4 {[%clk 0:00:29]}  Bf5 {[%clk 0:00:18]} 26. Bxf5 {[%clk 0:00:29]}  gxf5 {[%clk 0:00:18]} 27. Nd7 {[%clk 0:00:29]}  Rbc8 {[%clk 0:00:16]} 28. Nxf8 {[%clk 0:00:29]}  Kxf8 {[%clk 0:00:17]} 29. Rac1 {[%clk 0:00:21]}  Rc7 {[%clk 0:00:17]} 30. h5 {[%clk 0:00:17]}  e4 {[%clk 0:00:17]} 31. Rd5 {[%clk 0:00:15]}  Ke7 {[%clk 0:00:10]} 32. Rxf5 {[%clk 0:00:16]}  Ke6 {[%clk 0:00:11]} 33. Rf4 {[%clk 0:00:16]}  Kd5 {[%clk 0:00:08]} 34. Re1 {[%clk 0:00:13]}  Re7 {[%clk 0:00:06]} 35. Rf5+ {[%clk 0:00:13]}  Kc6 {[%clk 0:00:05]} 36. g4 {[%clk 0:00:13]}  a5 {[%clk 0:00:05]} 37. Kg2 {[%clk 0:00:13]}  a4 {[%clk 0:00:05]} 38. Rf4 {[%clk 0:00:11]}  Kd5 {[%clk 0:00:05]} 39. Rf5+ {[%clk 0:00:11]}  Kc6 {[%clk 0:00:05]} 40. Re2 {[%clk 0:00:10]}  a3 {[%clk 0:00:05]} 41. Kg3 {[%clk 0:00:10]}  Be5+ {[%clk 0:00:01]} 42. Kg2 {[%clk 0:00:08]}  Bf6 {[%clk 0:00:02]} 43. Kh3 {[%clk 0:00:07]}  Re6 {[%clk 0:00:02]} 44. Kg3 {[%clk 0:00:06]}  Re7 {[%clk 0:00:02]} 45. Kf4 {[%clk 0:00:06]}  Bg5+ {[%clk 0:00:03]} 46. Rxg5 {[%clk 0:00:06]}  hxg5+ {[%clk 0:00:04]} 47. Kxg5 {[%clk 0:00:07]}  Kd5 {[%clk 0:00:05]} 48. Kg6 {[%clk 0:00:07]}  Kd4 {[%clk 0:00:05]} 49. g5 {[%clk 0:00:07]}  Kd3 {[%clk 0:00:05]} 50. Re3+ {[%clk 0:00:08]}  Kd4 {[%clk 0:00:05]} 51. Rxa3 {[%clk 0:00:08]}  Rc7 {[%clk 0:00:05]} 52. h6 {[%clk 0:00:07]}  gxh6 {[%clk 0:00:05]} 53. gxh6 {[%clk 0:00:08]}  Rc6+ {[%clk 0:00:06]} 54. Kg7 {[%clk 0:00:07]}  Rc7+ {[%clk 0:00:06]} 55. Kg6 {[%clk 0:00:07]}  Rc6+ {[%clk 0:00:07]} 56. Kg5 {[%clk 0:00:07]}  Rxc5+ {[%clk 0:00:07]} 57. Kg4 {[%clk 0:00:08]}  Rc7 {[%clk 0:00:07]} 58. Rh3 {[%clk 0:00:08]}  Rh7 {[%clk 0:00:06]} 59. Kg5 {[%clk 0:00:09]}  b5 {[%clk 0:00:04]} 60. Kg6 {[%clk 0:00:09]}  Rc7 {[%clk 0:00:04]} 61. h7 {[%clk 0:00:09]}  Rc6+ {[%clk 0:00:05]} 62. Kf7 {[%clk 0:00:10]}  Rc7+ {[%clk 0:00:05]} 63. Ke6 {[%clk 0:00:10]}  Rc8 {[%clk 0:00:05]} 64. h8=Q+ {[%clk 0:00:10]}  Rxh8 {[%clk 0:00:06]} 65. Rxh8 {[%clk 0:00:10]}  b4 {[%clk 0:00:06]} 66. Rb8 {[%clk 0:00:10]}  Kc3 {[%clk 0:00:06]} 67. Ke5 {[%clk 0:00:10]}  e3 {[%clk 0:00:05]} 68. fxe3 {[%clk 0:00:10]} 1-0


[Site "https://www.chess.com"]